Workbook

Sheet 세입
A1: 2017학년도 소주한국학교 세입 (본)예산서
M2: (단위 : RMB)
A3: 세입
A4: 항 | B4: 목 | C4: 산출기초
C5: 세목 | D5: 내역 | E5: 단가 | F5: 인원(기간) | I5: 횟수 | M5: 금액
A6: 학부모부담수입
B7: 입학금 | C7: 입학금 | E7: ¥6,000.00 | F7: * | G7: 10 | H7: 명 | I7: * | J7: 1 | K7: 회 | L7: = | M7: =E7*G7*J7 -> ¥60,000.00
B8: 소계 | M8: =SUM(M7) -> ¥60,000.00
B9: 수업료
C10: 초등 | E10: =25000 -> ¥25,000.00 | F10: * | G10: 120 | H10: 명 | I10: * | J10: 1 | K10: 년 | L10: = | M10: =E10*G10*J10 -> ¥3,000,000.00
C11: 중등 | E11: =30000 -> ¥30,000.00 | F11: * | G11: 72 | H11: 명 | I11: * | J11: 1 | K11: 년 | L11: = | M11: =E11*G11*J11 -> ¥2,160,000.00
C12: 고등 | E12: =35000 -> ¥35,000.00 | F12: * | G12: 78 | H12: 명 | I12: * | J12: 1 | K12: 년 | L12: = | M12: =E12*G12*J12 -> ¥2,730,000.00
B13: 소계 | M13: =SUM(M10:M12) -> ¥7,890,000.00
B14: 수익자부담경비
C15: 수학여행 | D15: 초등 | E15: ¥2,000.00 | F15: * | G15: 120 | H15: 명 | I15: * | J15: 1 | K15: 회 | L15: = | M15: =E15*G15*J15 -> ¥240,000.00
D16: 중등 | E16: ¥2,000.00 | F16: * | G16: 72 | H16: 명 | I16: * | J16: 1 | K16: 회 | L16: = | M16: =E16*G16*J16 -> ¥144,000.00
D17: 고등 | E17: ¥2,000.00 | F17: * | G17: 78 | H17: 명 | I17: * | J17: 1 | K17: 회 | L17: = | M17: =E17*G17*J17 -> ¥156,000.00
C18: 현장학습 | D18: 초등 | E18: ¥1,000.00 | F18: * | G18: 120 | H18: 명 | I18: * | J18: 1 | K18: 회 | L18: = | M18: ¥120,000.00
D19: 중등 | E19: ¥1,000.00 | F19: * | G19: 72 | H19: 명 | I19: * | J19: 1 | K19: 회 | L19: = | M19: =E19*G19*J19 -> ¥72,000.00
D20: 고등 | E20: ¥1,000.00 | F20: * | G20: 78 | H20: 명 | I20: * | J20: 1 | K20: 회 | L20: = | M20: =E20*G20*J20 -> ¥78,000.00
C21: 급간식비 | D21: 전교생 | E21: ¥25.00 | F21: * | G21: 270 | H21: 명 | I21: * | J21: 175 | K21: 회 | L21: = | M21: ¥1,181,250.00
C22: 방과후학교 | D22: 초등 | E22: ¥1,000.00 | F22: * | G22: 120 | H22: 명 | I22: * | J22: 1 | K22: 년 | L22: = | M22: ¥120,000.00
D23: 중등 | E23: ¥1,000.00 | F23: * | G23: 72 | H23: 명 | I23: * | J23: 1 | K23: 년 | L23: = | M23: =E23*G23*J23 -> ¥72,000.00
D24: 고등 | E24: ¥1,000.00 | F24: * | G24: 78 | H24: 명 | I24: * | J24: 1 | K24: 년 | L24: = | M24: =E24*G24*J24 -> ¥78,000.00
C25: 통학버스비 | D25: 전교생 | E25: ¥41.00 | F25: * | G25: 240 | H25: 명 | I25: * | J25: 183 | K25: 일 | L25: = | M25: ¥1,800,720.00
B26: 소계 | M26: =SUM(M15:M25) -> ¥4,061,970.00
A27: 계 | M27: =M8+M13+M26 -> ¥12,011,970.00
A28: 교육부지원금
B29: 교직원인건비 | C29: 교직원인건비 | E29: ¥2,900,000.00 | F29: * | G29: 1 | H29: 년 | I29: * | J29: 1 | K29: 회 | L29: = | M29: =E29*G29*J29 -> ¥2,900,000.00
B30: 운영비 | C30: 학교운영비 | E30: ¥1,300,000.00 | F30: * | G30: 1 | H30: 년 | I30: * | J30: 1 | K30: 회 | L30: = | M30: ¥1,300,000.00
A31: 계 | M31: =SUM(M29:M30) -> ¥4,200,000.00
A32: 자체수입
B33: 사용료및수수료 | C33: 제증명수수료 | E33: ¥5.00 | F33: * | G33: 400 | H33: 명 | I33: * | J33: 2 | K33: 회 | L33: = | M33: =E33*G33*J33 -> ¥4,000.00
B34: 잡수입 | C34: 예적금이자 | E34: ¥2,000.00 | F34: * | G34: 1 | H34: 년 | I34: * | J34: 20 | K34: 회 | L34: = | M34: =E34*G34*J34 -> ¥40,000.00
C35: 행정잡수입 | E35: ¥500.00 | F35: * | G35: 1 | H35: 년 | I35: * | J35: 25 | K35: 회 | L35: = | M35: =E35*G35*J35 -> ¥12,500.00
A36: 계 | M36: =SUM(M33:M35) -> ¥56,500.00
A37: 기타수입
B38: 과년도수입 | C38: 과년도수입
B39: 이월금 | C39: 순세계잉여금 | E39: ¥1,000,000.00 | F39: * | G39: 1 | H39: 년 | I39: * | J39: 1 | K39: 회 | L39: = | M39: =E39*G39*J39 -> ¥1,000,000.00
C40: 계속비이월금 | E40: ¥3,000,000.00 | F40: * | G40: 1 | H40: 년 | I40: * | J40: 1 | K40: 회 | L40: = | M40: =E40*G40*J40 -> ¥3,000,000.00
A41: 계 | M41: =SUM(M39:M40) -> ¥4,000,000.00
A42: 합계 | M42: =M27+M31+M36+M41 -> ¥20,268,470.00

Sheet 세출
A1: 2017학년도 소주한국학교 세출 (본)예산서
M2: (단위 : RMB)
A3: 세출
A4: 항 | B4: 목 | C4: 세목 | D4: 세부산출 내역
D5: 내역 | E5: 단가 | F5: 인원(기간) | I5: 횟수 | M5: 금액
A6: 1.인건비 | B6: 1.교원 | C6: 교원 | D6: 기본급(교감) | E6: ¥14,200.00 | F6: * | G6: ¥1.00 | H6: 명 | I6: * | J6: ¥12.00 | K6: 월 | L6: = | M6: =E6*G6*J6 -> ¥170,400.00
D7: 기본급 | E7: ¥13,200.00 | F7: * | G7: ¥22.00 | H7: 명 | I7: * | J7: ¥12.00 | K7: 월 | L7: = | M7: =E7*G7*J7 -> ¥3,484,800.00
D8: 직책수당 | E8: ¥3,500.00 | F8: * | G8: ¥1.00 | H8: 명 | I8: * | J8: ¥12.00 | K8: 월 | L8: = | M8: ¥42,000.00
D9: 경력수당 | E9: ¥2,000.00 | F9: * | G9: ¥22.00 | H9: 명 | I9: * | J9: ¥12.00 | K9: 월 | L9: = | M9: ¥528,000.00
D10: 부장수당 | E10: ¥1,000.00 | F10: * | G10: ¥4.00 | H10: 명 | I10: * | J10: ¥12.00 | K10: 월 | L10: = | M10: ¥48,000.00
D11: 담임수당 | E11: ¥1,000.00 | F11: * | G11: ¥14.00 | H11: 명 | I11: * | J11: ¥12.00 | K11: 월 | L11: = | M11: ¥168,000.00
D12: 가족수당 | E12: ¥400.00 | F12: * | G12: ¥23.00 | H12: 명 | I12: * | J12: ¥12.00 | K12: 월 | L12: = | M12: ¥110,400.00
D13: 초과근무수당 | E13: ¥500.00 | F13: * | G13: ¥23.00 | H13: 명 | I13: * | J13: ¥10.00 | K13: 월 | L13: = | M13: ¥115,000.00
D14: 주택수당(교감) | E14: ¥5,500.00 | F14: * | G14: ¥1.00 | H14: 명 | I14: * | J14: ¥12.00 | K14: 월 | L14: = | M14: ¥66,000.00
D15: 주택수당 | E15: ¥4,500.00 | F15: * | G15: ¥22.00 | H15: 명 | I15: * | J15: ¥12.00 | K15: 월 | L15: = | M15: ¥1,188,000.00
D16: 항공료 | E16: ¥3,000.00 | F16: * | G16: ¥10.00 | H16: 명 | I16: * | J16: ¥2.00 | K16: 회 | L16: = | M16: ¥60,000.00
D17: 초기정착비 | E17: ¥2,000.00 | F17: * | G17: ¥10.00 | H17: 명 | I17: * | J17: ¥1.00 | K17: 회 | L17: = | M17: ¥20,000.00
D18: 근속장려금(교감) | E18: ¥14,200.00 | F18: * | G18: ¥1.00 | H18: 명 | I18: * | J18: ¥1.00 | K18: 년 | L18: = | M18: ¥14,200.00
D19: 근속장려금 | E19: ¥13,200.00 | F19: * | G19: ¥22.00 | H19: 명 | I19: * | J19: ¥1.00 | K19: 년 | L19: = | M19: ¥290,400.00
C20: 원어민(영어) | D20: 기본급 | E20: ¥14,100.00 | F20: * | G20: ¥2.00 | H20: 명 | I20: * | J20: ¥12.00 | K20: 회 | L20: = | M20: ¥338,400.00
D21: 기본급 | E21: ¥12,500.00 | F21: * | G21: ¥1.00 | H21: 명 | I21: * | J21: ¥12.00 | K21: 회 | L21: = | M21: ¥150,000.00
D22: 주택수당 | E22: ¥4,500.00 | F22: * | G22: ¥2.00 | H22: 명 | I22: * | J22: ¥12.00 | K22: 회 | L22: = | M22: ¥108,000.00
D23: 항공료 | E23: ¥5,000.00 | F23: * | G23: ¥2.00 | H23: 명 | I23: * | J23: ¥1.00 | K23: 회 | L23: = | M23: ¥10,000.00
D24: 근속장려금 | E24: ¥14,100.00 | F24: * | G24: ¥2.00 | H24: 명 | I24: * | J24: ¥1.00 | K24: 회 | L24: = | M24: ¥28,200.00
C25: 중국어강사 | D25: 기본급 | E25: ¥5,000.00 | F25: * | G25: ¥5.00 | H25: 명 | I25: * | J25: ¥12.00 | K25: 회 | L25: = | M25: ¥300,000.00
D26: 근속장려금 | E26: ¥5,000.00 | F26: * | G26: ¥5.00 | H26: 명 | I26: * | J26: ¥1.00 | K26: 회 | L26: = | M26: ¥25,000.00
C27: 시간강사 | D27: 기본급 | E27: ¥150.00 | F27: * | G27: ¥3.00 | H27: 명 | I27: * | J27: ¥400.00 | K27: 시간 | L27: = | M27: ¥180,000.00
C28: 교원비자수속 | D28: 비자수속비 | E28: ¥3,000.00 | F28: * | G28: ¥15.00 | H28: 명 | I28: * | J28: ¥1.00 | K28: 회 | L28: = | M28: =E28*G28*J28 -> ¥45,000.00
C29: 교원급식비 | D29: 급식비 | E29: ¥20.00 | F29: * | G29: ¥35.00 | H29: 명 | I29: * | J29: ¥184.00 | K29: 일 | L29: = | M29: ¥128,800.00
B30: 소계 | M30: =SUM(M6:M29) -> ¥7,618,600.00
B31: 2.직원및계약교직원 | C31: 행정실장 | D31: 기본급 | E31: ¥14,200.00 | F31: * | G31: ¥1.00 | H31: 명 | I31: * | J31: ¥12.00 | K31: 월 | L31: = | M31: =E31*G31*J31 -> ¥170,400.00
D32: 직책수당 | E32: ¥3,500.00 | F32: * | G32: ¥1.00 | H32: 명 | I32: * | J32: ¥12.00 | K32: 월 | L32: = | M32: =E32*G32*J32 -> ¥42,000.00
D33: 가족수당 | E33: ¥400.00 | F33: * | G33: ¥1.00 | H33: 명 | I33: * | J33: ¥12.00 | K33: 월 | L33: = | M33: ¥4,800.00
D34: 경력수당 | E34: ¥1,900.00 | F34: * | G34: ¥1.00 | H34: 명 | I34: * | J34: ¥12.00 | K34: 월 | L34: = | M34: ¥22,800.00
D35: 주택수당 | E35: ¥5,000.00 | F35: * | G35: ¥1.00 | H35: 명 | I35: * | J35: ¥12.00 | K35: 월 | L35: = | M35: ¥60,000.00
D36: 초과근무수당 | E36: ¥1,000.00 | F36: * | G36: ¥1.00 | H36: 명 | I36: * | J36: ¥12.00 | K36: 월 | L36: = | M36: ¥12,000.00
D37: 근속장려금 | E37: ¥14,200.00 | F37: * | G37: ¥1.00 | H37: 명 | I37: * | J37: ¥1.00 | K37: 회 | L37: = | M37: ¥14,200.00
C38: 행정과장 | D38: 기본급 | E38: ¥13,200.00 | F38: * | G38: ¥1.00 | H38: 명 | I38: * | J38: ¥12.00 | K38: 월 | L38: = | M38: =E38*G38*J38 -> ¥158,400.00
D39: 직책수당 | E39: ¥1,000.00 | F39: * | G39: ¥1.00 | H39: 명 | I39: * | J39: ¥12.00 | K39: 월 | L39: = | M39: =E39*G39*J39 -> ¥12,000.00
D40: 가족수당 | E40: ¥200.00 | F40: * | G40: ¥1.00 | H40: 명 | I40: * | J40: ¥12.00 | K40: 월 | L40: = | M40: ¥2,400.00
D41: 주택수당 | E41: ¥4,500.00 | F41: * | G41: ¥1.00 | H41: 명 | I41: * | J41: ¥12.00 | K41: 월 | L41: = | M41: =E41*G41*J41 -> ¥54,000.00
D42: 초과근무수당 | E42: ¥500.00 | F42: * | G42: ¥1.00 | H42: 명 | I42: * | J42: ¥12.00 | K42: 월 | L42: = | M42: =E42*G42*J42 -> ¥6,000.00
D43: 근속장려금 | E43: ¥13,200.00 | F43: * | G43: ¥1.00 | H43: 명 | I43: * | J43: ¥1.00 | K43: 회 | L43: = | M43: =E43*G43*J43 -> ¥13,200.00
C44: 행정직원(한국) | D44: 기본급 | E44: ¥10,000.00 | F44: * | G44: ¥2.00 | H44: 명 | I44: * | J44: ¥12.00 | K44: 월 | L44: = | M44: =E44*G44*J44 -> ¥240,000.00
D45: 초과근무수당 | E45: ¥300.00 | F45: * | G45: ¥2.00 | H45: 명 | I45: * | J45: ¥12.00 | K45: 월 | L45: = | M45: ¥7,200.00
D46: 근속장려금 | E46: ¥10,000.00 | F46: * | G46: ¥2.00 | H46: 명 | I46: * | J46: ¥1.00 | K46: 회 | L46: = | M46: ¥20,000.00
C47: 행정직원(중국) 유치원보조교사, 보건교사 추가 | D47: 기본급 | E47: ¥6,000.00 | F47: * | G47: ¥6.00 | H47: 명 | I47: * | J47: ¥12.00 | K47: 월 | L47: = | M47: ¥432,000.00
D48: 초과근무수당 | E48: ¥500.00 | F48: * | G48: ¥6.00 | H48: 명 | I48: * | J48: ¥12.00 | K48: 월 | L48: = | M48: ¥36,000.00
D49: 근속장려금 | E49: ¥6,000.00 | F49: * | G49: ¥6.00 | H49: 명 | I49: * | J49: ¥1.00 | K49: 회 | L49: = | M49: ¥36,000.00
C50: 교직원비자수속 | D50: 비자수속비 | E50: ¥3,000.00 | F50: * | G50: ¥4.00 | H50: 명 | I50: * | J50: ¥1.00 | K50: 회 | L50: = | M50: ¥12,000.00
C51: 교직원급식비 | D51: 급식비 | E51: ¥20.00 | F51: * | G51: ¥10.00 | H51: 명 | I51: * | J51: ¥240.00 | K51: 일 | L51: = | M51: ¥48,000.00
B52: 소계 | M52: =SUM(M31:M51) -> ¥1,403,400.00
A53: 계 | M53: =M30+M52 -> ¥9,022,000.00
A54: 2.학교운영비 | B54: 1.일반운영비 | C54: 공통운영비 | D54: 사무용품구입 | E54: ¥1,000.00 | F54: * | G54: ¥1.00 | H54: 년 | I54: * | J54: ¥12.00 | K54: 월 | L54: = | M54: =E54*G54*J54 -> ¥12,000.00
D55: 내빈접대물품구입 | E55: ¥1,500.00 | F55: * | G55: ¥1.00 | H55: 년 | I55: * | J55: ¥12.00 | K55: 월 | L55: = | M55: =E55*G55*J55 -> ¥18,000.00
D56: 관내여비 | E56: ¥200.00 | F56: * | G56: ¥20.00 | H56: 회 | I56: * | J56: ¥12.00 | K56: 월 | L56: = | M56: ¥48,000.00
D57: 관외여비 | E57: ¥500.00 | F57: * | G57: ¥8.00 | H57: 회 | I57: * | J57: ¥12.00 | K57: 월 | L57: = | M57: ¥48,000.00
D58: 국외여비 | E58: ¥7,000.00 | F58: * | G58: ¥3.00 | H58: 명 | I58: * | J58: ¥5.00 | K58: 회 | L58: = | M58: ¥105,000.00
C59: 전기시설관리 | D59: 전기료 | E59: ¥7,000.00 | F59: * | G59: ¥1.00 | H59: 년 | I59: * | J59: ¥12.00 | K59: 월 | L59: = | M59: ¥84,000.00
C60: 상하수도관리 | D60: 상하수도요금 | E60: ¥5,000.00 | F60: * | G60: ¥1.00 | H60: 년 | I60: * | J60: ¥12.00 | K60: 월 | L60: = | M60: ¥60,000.00
C61: 당직관리 | D61: 당직용품구입 | E61: ¥500.00 | F61: * | G61: ¥1.00 | H61: 년 | I61: * | J61: ¥12.00 | K61: 월 | L61: = | M61: ¥6,000.00
C62: 정보통신관리 | D62: 전화요금 | E62: ¥1,500.00 | F62: * | G62: ¥1.00 | H62: 년 | I62: * | J62: ¥12.00 | K62: 월 | L62: = | M62: ¥18,000.00
D63: 인터넷요금 | E63: ¥3,600.00 | F63: * | G63: ¥1.00 | H63: 년 | I63: * | J63: ¥12.00 | K63: 월 | L63: = | M63: ¥43,200.00
C64: 소방관리 | D64: 소화기구입 | E64: ¥200.00 | F64: * | G64: ¥50.00 | H64: 개 | I64: * | J64: ¥1.00 | K64: 년 | L64: = | M64: ¥10,000.00
C65: 학교시설용역관리 | D65: 경비 및 청소 용역 | E65: ¥30,000.00 | F65: * | G65: ¥1.00 | H65: 년 | I65: * | J65: ¥12.00 | K65: 월 | L65: = | M65: ¥360,000.00
D66: 조경 등 교정 관리용역 | E66: ¥20,000.00 | F66: * | G66: ¥1.00 | H66: 년 | I66: * | J66: ¥12.00 | K66: 월 | L66: = | M66: ¥240,000.00
D67: 인터넷유지보수용역 | E67: ¥3,000.00 | F67: * | G67: ¥1.00 | H67: 년 | I67: * | J67: ¥12.00 | K67: 월 | L67: = | M67: =E67*G67*J67 -> ¥36,000.00
D68: 복사기임대료 | E68: ¥600.00 | F68: * | G68: ¥5.00 | H68: 대 | I68: * | J68: ¥12.00 | K68: 월 | L68: = | M68: ¥36,000.00
D69: 쓰레기처리 용역 | E69: ¥1,000.00 | F69: * | G69: ¥1.00 | H69: 년 | I69: * | J69: ¥12.00 | K69: 월 | L69: = | M69: ¥12,000.00
C70: 일반행정관리 | D70: 복사용지구입 | E70: ¥1,200.00 | F70: * | G70: ¥1.00 | H70: 년 | I70: * | J70: ¥12.00 | K70: 월 | L70: = | M70: ¥14,400.00
D71: 칠판소모품구입 | E71: ¥500.00 | F71: * | G71: ¥1.00 | H71: 년 | I71: * | J71: ¥12.00 | K71: 월 | L71: = | M71: ¥6,000.00
D72: 프린터토너 | E72: ¥1,000.00 | F72: * | G72: ¥1.00 | H72: 년 | I72: * | J72: ¥12.00 | K72: 월 | L72: = | M72: ¥12,000.00
D73: 행정장비유지보수 | E73: ¥1,000.00 | F73: * | G73: ¥1.00 | H73: 년 | I73: * | J73: ¥12.00 | K73: 월 | L73: = | M73: ¥12,000.00
D74: 각종수수료 | E74: ¥2,000.00 | F74: * | G74: ¥1.00 | H74: 년 | I74: * | J74: ¥1.00 | K74: 회 | L74: = | M74: ¥2,000.00
D75: 회계검사비 | E75: ¥2,500.00 | F75: * | G75: ¥1.00 | H75: 년 | I75: * | J75: ¥2.00 | K75: 회 | L75: = | M75: ¥5,000.00
D76: 우편요금 | E76: ¥1,000.00 | F76: * | G76: ¥1.00 | H76: 년 | I76: * | J76: ¥12.00 | K76: 월 | L76: = | M76: ¥12,000.00
D77: 간행물비 | E77: ¥500.00 | F77: * | G77: ¥1.00 | H77: 년 | I77: * | J77: ¥12.00 | K77: 월 | L77: = | M77: ¥6,000.00
C78: 특근매식비 | D78: 야간특근매식비 | E78: ¥40.00 | F78: * | G78: ¥10.00 | H78: 명 | I78: * | J78: ¥200.00 | K78: 일 | L78: = | M78: ¥80,000.00
C79: 차량보조비 | D79: 기사 및 관리 용역비 | E79: ¥10,000.00 | F79: * | G79: ¥1.00 | H79: 대 | I79: * | J79: ¥12.00 | K79: 월 | L79: = | M79: ¥120,000.00
D80: 유류비 및 통행료 등 | E80: ¥10,000.00 | F80: * | G80: ¥1.00 | H80: 대 | I80: * | J80: ¥12.00 | K80: 월 | L80: = | M80: ¥120,000.00
B81: 소계 | M81: =SUM(M54:M80) -> ¥1,525,600.00
B82: 2.교수학습활동비 | C82: 교과활동(초) | D82: 체육교구 구입 | E82: ¥3,000.00 | F82: * | G82: ¥1.00 | H82: 년 | I82: * | J82: ¥2.00 | K82: 회 | L82: = | M82: =E82*G82*J82 -> ¥6,000.00
D83: 미술교구 구입 | E83: ¥2,750.00 | F83: * | G83: ¥1.00 | H83: 년 | I83: * | J83: ¥1.00 | K83: 회 | L83: = | M83: =E83*G83*J83 -> ¥2,750.00
D84: 음악교구 구입 | E84: ¥2,000.00 | F84: * | G84: ¥1.00 | H84: 년 | I84: * | J84: ¥1.00 | K84: 회 | L84: = | M84: ¥2,000.00
D85: 과학교구 구입 | E85: ¥5,000.00 | F85: * | G85: ¥1.00 | H85: 년 | I85: * | J85: ¥2.00 | K85: 회 | L85: = | M85: ¥10,000.00
C86: 교과활동(중) | D86: 체육교구 구입 | E86: ¥2,500.00 | F86: * | G86: ¥1.00 | H86: 년 | I86: * | J86: ¥4.00 | K86: 회 | L86: = | M86: =E86*G86*J86 -> ¥10,000.00
D87: 미술교구 구입 | E87: ¥30.00 | F87: * | G87: ¥150.00 | H87: 명 | I87: * | J87: ¥1.00 | K87: 회 | L87: = | M87: =E87*G87*J87 -> ¥4,500.00
D88: 미술실비품 구입 | E88: ¥300.00 | F88: * | G88: ¥1.00 | H88: 년 | I88: * | J88: ¥5.00 | K88: 회 | L88: = | M88: ¥1,500.00
D89: 음악교구 구입 | E89: ¥465.00 | F89: * | G89: ¥1.00 | H89: 년 | I89: * | J89: ¥7.00 | K89: 회 | L89: = | M89: =E89*G89*J89 -> ¥3,255.00
D90: 과학교구 구입 | E90: ¥2,000.00 | F90: * | G90: ¥1.00 | H90: 년 | I90: * | J90: ¥2.00 | K90: 회 | L90: = | M90: =E90*G90*J90 -> ¥4,000.00
D91: 과학기자재구입 | E91: ¥10,000.00 | F91: * | G91: ¥1.00 | H91: 년 | I91: * | J91: ¥2.00 | K91: 회 | L91: = | M91: =E91*G91*J91 -> ¥20,000.00
C92: 학급운영비(초) | D92: 학급운영비 | E92: ¥100.00 | F92: * | G92: ¥6.00 | H92: 반 | I92: * | J92: ¥10.00 | K92: 월 | L92: = | M92: ¥6,000.00
C93: 학급운영비(중) | D93: 학급운영비 | E93: ¥100.00 | F93: * | G93: ¥14.00 | H93: 반 | I93: * | J93: ¥10.00 | K93: 월 | L93: = | M93: =E93*G93*J93 -> ¥14,000.00
C94: 중국어교육(초) | D94: 중국어과자료구입 | E94: ¥500.00 | F94: * | G94: ¥1.00 | H94: 년 | I94: * | J94: ¥3.00 | K94: 회 | L94: = | M94: ¥1,500.00
D95: 외국어페스티벌 물품 구입 | E95: ¥2,000.00 | F95: * | G95: ¥1.00 | H95: 년 | I95: * | J95: ¥1.00 | K95: 회 | L95: = | M95: ¥2,000.00
D96: 중국어경시대회 | E96: ¥1,000.00 | F96: * | G96: ¥1.00 | H96: 년 | I96: * | J96: ¥1.00 | K96: 회 | L96: = | M96: ¥1,000.00
C97: 중국어교육(중) | D97: 중국어과자료구입 | E97: ¥500.00 | F97: * | G97: ¥1.00 | H97: 년 | I97: * | J97: ¥2.00 | K97: 회 | L97: = | M97: =E97*G97*J97 -> ¥1,000.00
D98: 외국어페스티벌 물품 구입 | E98: ¥20.00 | F98: * | G98: ¥150.00 | H98: 명 | I98: * | J98: ¥1.00 | K98: 회 | L98: = | M98: ¥3,000.00
D99: 중국어경시대회 | E99: ¥600.00 | F99: * | G99: ¥1.00 | H99: 년 | I99: * | J99: ¥2.00 | K99: 회 | L99: = | M99: ¥1,200.00
C100: 영어교육(초) | D100: 헤드헌터소개비 | E100: ¥5,000.00 | F100: * | G100: ¥1.00 | H100: 년 | I100: * | J100: ¥1.00 | K100: 회 | L100: = | M100: ¥5,000.00
D101: 영어과 자료구입 | E101: ¥500.00 | F101: * | G101: ¥1.00 | H101: 년 | I101: * | J101: ¥8.00 | K101: 회 | L101: = | M101: ¥4,000.00
D102: 외국어페스티벌 물품 구입 | E102: ¥500.00 | F102: * | G102: ¥1.00 | H102: 년 | I102: * | J102: ¥4.00 | K102: 회 | L102: = | M102: ¥2,000.00
D103: 외국어경시대회 | E103: ¥1,000.00 | F103: * | G103: ¥1.00 | H103: 년 | I103: * | J103: ¥1.00 | K103: 회 | L103: = | M103: ¥1,000.00
C104: 영어교육(중) | D104: 헤드헌터소개비 | E104: ¥10,000.00 | F104: * | G104: ¥1.00 | H104: 년 | I104: * | J104: ¥1.00 | K104: 회 | L104: = | M104: =E104*G104*J104 -> ¥10,000.00
D105: 영어과 자료구입 | E105: ¥2,500.00 | F105: * | G105: ¥1.00 | H105: 년 | I105: * | J105: ¥4.00 | K105: 회 | L105: = | M105: ¥10,000.00
D106: 외국어페스티벌 물품 구입 | E106: ¥40.00 | F106: * | G106: ¥150.00 | H106: 명 | I106: * | J106: ¥1.00 | K106: 회 | L106: = | M106: ¥6,000.00
D107: 외국어경시대회 | E107: ¥20.00 | F107: * | G107: ¥150.00 | H107: 명 | I107: * | J107: ¥1.00 | K107: 회 | L107: = | M107: ¥3,000.00
C108: 동아리활동(초) | D108: 동아리 활동 경비 | E108: ¥500.00 | F108: * | G108: ¥13.00 | H108: 개 | I108: * | J108: ¥1.00 | K108: 회 | L108: = | M108: =E108*G108*J108 -> ¥6,500.00
C109: 동아리활동(중) | D109: 교지 편집 | E109: ¥25,000.00 | F109: * | G109: ¥1.00 | H109: 회 | I109: * | J109: ¥1.00 | K109: 년 | L109: = | M109: ¥25,000.00
D110: 동아리 활동 경비 | E110: ¥2,000.00 | F110: * | G110: ¥20.00 | H110: 개 | I110: * | J110: ¥1.00 | K110: 회 | L110: = | M110: ¥40,000.00
C111: 특색사업(초) | D111: 태권도교육강사비 | E111: ¥150.00 | F111: * | G111: ¥7.00 | H111: 회 | I111: * | J111: ¥34.00 | K111: 주 | L111: = | M111: ¥35,700.00
D112: 태권도교구 | E112: ¥5,000.00 | F112: * | G112: ¥1.00 | H112: 년 | I112: * | J112: ¥1.00 | K112: 회 | L112: = | M112: ¥5,000.00
D113: 악기임대 및 음악교육 | E113: ¥20,000.00 | F113: * | G113: ¥1.00 | H113: 년 | I113: * | J113: ¥4.00 | K113: 회 | L113: = | M113: ¥80,000.00
D114: 삼국지문집 제본비 | E114: ¥100.00 | F114: * | G114: ¥150.00 | H114: 장 | I114: * | J114: ¥1.00 | K114: 회 | L114: = | M114: ¥15,000.00
C115: 각종 행사(초) | D115: 한글날행사 물품 구입 | E115: ¥50.00 | F115: * | G115: ¥150.00 | H115: 명 | I115: * | J115: ¥1.00 | K115: 회 | L115: = | M115: ¥7,500.00
D116: 과학의날 행사 물품 구입 | E116: ¥5,000.00 | F116: * | G116: ¥1.00 | H116: 년 | I116: * | J116: ¥1.00 | K116: 회 | L116: = | M116: ¥5,000.00
D117: 별빛뒤뜰야영물품 구입 | E117: ¥10,000.00 | F117: * | G117: ¥1.00 | H117: 년 | I117: * | J117: ¥1.00 | K117: 회 | L117: = | M117: ¥10,000.00
D118: 체육대회운영비 | E118: ¥6,000.00 | F118: * | G118: ¥1.00 | H118: 년 | I118: * | J118: ¥1.00 | K118: 회 | L118: = | M118: =E118*G118*J118 -> ¥6,000.00
D119: 체육대회행사평가회비 | E119: ¥100.00 | F119: * | G119: ¥15.00 | H119: 명 | I119: * | J119: ¥1.00 | K119: 회 | L119: = | M119: =E119*G119*J119 -> ¥1,500.00
D120: 학예회관련 물품 구입 | E120: ¥3,850.00 | F120: * | G120: ¥1.00 | H120: 년 | I120: * | J120: ¥1.00 | K120: 회 | L120: = | M120: ¥3,850.00
D121: 학예회평가회비 | E121: ¥150.00 | F121: * | G121: ¥16.00 | H121: 명 | I121: * | J121: ¥1.00 | K121: 회 | L121: = | M121: ¥2,400.00
C122: 각종 행사(중) | D122: 한글날기념백일장시상등 | E122: ¥870.00 | F122: * | G122: ¥1.00 | H122: 년 | I122: * | J122: ¥1.00 | K122: 회 | L122: = | M122: =E122*G122*J122 -> ¥870.00
D123: 과학의날 행사 물품 구입 | E123: ¥10,000.00 | F123: * | G123: ¥1.00 | H123: 년 | I123: * | J123: ¥1.00 | K123: 회 | L123: = | M123: =E123*G123*J123 -> ¥10,000.00
D124: 학예회관련 물품 구입 | E124: ¥5,000.00 | F124: * | G124: ¥1.00 | H124: 년 | I124: * | J124: ¥1.00 | K124: 회 | L124: = | M124: ¥5,000.00
D125: 학예회평가회비 | E125: ¥150.00 | F125: * | G125: ¥25.00 | H125: 명 | I125: * | J125: ¥1.00 | K125: 회 | L125: = | M125: ¥3,750.00
D126: 체육대회운영비 | E126: ¥4,000.00 | F126: * | G126: ¥1.00 | H126: 년 | I126: * | J126: ¥2.00 | K126: 회 | L126: = | M126: =E126*G126*J126 -> ¥8,000.00
D127: 체육대회행사평가회비 | E127: ¥150.00 | F127: * | G127: ¥25.00 | H127: 명 | I127: * | J127: ¥2.00 | K127: 회 | L127: = | M127: =E127*G127*J127 -> ¥7,500.00
D128: 학교 간 경기운영비 | E128: ¥10,000.00 | F128: * | G128: ¥1.00 | H128: 년 | I128: * | J128: ¥2.00 | K128: 회 | L128: = | M128: =E128*G128*J128 -> ¥20,000.00
D129: S리그운영비 | E129: ¥3,000.00 | F129: * | G129: ¥1.00 | H129: 년 | I129: * | J129: ¥4.00 | K129: 회 | L129: = | M129: =E129*G129*J129 -> ¥12,000.00
C130: 환경정리(초) | D130: 교실게시물 | E130: ¥500.00 | F130: * | G130: ¥6.00 | H130: 실 | I130: * | J130: ¥2.00 | K130: 회 | L130: = | M130: =E130*G130*J130 -> ¥6,000.00
C131: 환경정리(중) | D131: 특별실게시물 | E131: ¥1,000.00 | F131: * | G131: ¥1.00 | H131: 년 | I131: * | J131: ¥2.00 | K131: 회 | L131: = | M131: ¥2,000.00
D132: 교실게시물 | E132: ¥500.00 | F132: * | G132: ¥6.00 | H132: 실 | I132: * | J132: ¥2.00 | K132: 회 | L132: = | M132: =E132*G132*J132 -> ¥6,000.00
C133: 입학식(초) | D133: 입학예비소집일 준비물품 | E133: ¥100.00 | F133: * | G133: ¥20.00 | H133: 명 | I133: * | J133: ¥1.00 | K133: 회 | L133: = | M133: ¥2,000.00
D134: 교육과정안내서 | E134: ¥30.00 | F134: * | G134: ¥500.00 | H134: 장 | I134: * | J134: ¥1.00 | K134: 회 | L134: = | M134: ¥15,000.00
C135: 졸업식(초) | D135: 졸업식 상품 | E135: ¥750.00 | F135: * | G135: ¥20.00 | H135: 명 | I135: * | J135: ¥1.00 | K135: 회 | L135: = | M135: =E135*G135*J135 -> ¥15,000.00
C136: 졸업식(중) | D136: 졸업식 준비물품 구입 | E136: ¥13,000.00 | F136: * | G136: ¥1.00 | H136: 년 | I136: * | J136: ¥1.00 | K136: 회 | L136: = | M136: ¥13,000.00
D137: 졸업식 상품 | E137: ¥750.00 | F137: * | G137: ¥40.00 | H137: 명 | I137: * | J137: ¥1.00 | K137: 회 | L137: = | M137: ¥30,000.00
C138: 보건교육(초) | D138: 기자재구입 | E138: ¥2,000.00 | F138: * | G138: ¥3.00 | H138: 대 | I138: * | J138: ¥1.00 | K138: 회 | L138: = | M138: ¥6,000.00
C139: 보건교육(중) | D139: 보건교육 | E139: ¥1,000.00 | F139: * | G139: ¥1.00 | H139: 대 | I139: * | J139: ¥1.00 | K139: 회 | L139: = | M139: =E139*G139*J139 -> ¥1,000.00
C140: 안전교육(중) | D140: 안전교육 | E140: ¥1,000.00 | F140: * | G140: ¥1.00 | H140: 대 | I140: * | J140: ¥1.00 | K140: 회 | L140: = | M140: =E140*G140*J140 -> ¥1,000.00
C141: 교무학사운영(초) | D141: 사무용품구입 | E141: ¥750.00 | F141: * | G141: ¥1.00 | H141: 년 | I141: * | J141: ¥2.00 | K141: 회 | L141: = | M141: =E141*G141*J141 -> ¥1,500.00
C142: 교무학사운영(중) | D142: 상장용지 | E142: ¥5.00 | F142: * | G142: ¥200.00 | H142: 장 | I142: * | J142: ¥5.00 | K142: 회 | L142: = | M142: ¥5,000.00
D143: 사무용품구입 | E143: ¥750.00 | F143: * | G143: ¥1.00 | H143: 년 | I143: * | J143: ¥4.00 | K143: 회 | L143: = | M143: =E143*G143*J143 -> ¥3,000.00
D144: 홍보물품구입 | E144: ¥2,000.00 | F144: * | G144: ¥1.00 | H144: 년 | I144: * | J144: ¥5.00 | K144: 회 | L144: = | M144: =E144*G144*J144 -> ¥10,000.00
D145: 시험물품구입비 | E145: ¥100.00 | F145: * | G145: ¥1.00 | H145: 년 | I145: * | J145: ¥16.00 | K145: 회 | L145: = | M145: =E145*G145*J145 -> ¥1,600.00
D146: 성적처리관련 물품구입 | E146: ¥2,500.00 | F146: * | G146: ¥1.00 | H146: 년 | I146: * | J146: ¥1.00 | K146: 회 | L146: = | M146: ¥2,500.00
C147: 교육과정운영(초) | D147: 교육과정운영평가회비 | E147: ¥50.00 | F147: * | G147: ¥10.00 | H147: 명 | I147: * | J147: ¥10.00 | K147: 회 | L147: = | M147: ¥5,000.00
D148: 학부모상담 등 다과 구입 | E148: ¥10.00 | F148: * | G148: ¥100.00 | H148: 명 | I148: * | J148: ¥1.00 | K148: 회 | L148: = | M148: ¥1,000.00
D149: 배려생물기르기 | E149: ¥2,000.00 | F149: * | G149: ¥6.00 | H149: 학년 | I149: * | J149: ¥1.00 | K149: 회 | L149: = | M149: ¥12,000.00
D150: 예절실운영 | E150: ¥8,000.00 | F150: * | G150: ¥1.00 | H150: 년 | I150: * | J150: ¥1.00 | K150: 회 | L150: = | M150: ¥8,000.00
D151: 모범배지물품 | E151: ¥4,000.00 | F151: * | G151: ¥1.00 | H151: 년 | I151: * | J151: ¥1.00 | K151: 회 | L151: = | M151: ¥4,000.00
D152: 학습준비물 | E152: ¥300.00 | F152: * | G152: ¥150.00 | H152: 명 | I152: * | J152: ¥1.00 | K152: 회 | L152: = | M152: ¥45,000.00
C153: 교육과정운영(중) | D153: 슈퍼스터디 | E153: ¥5,000.00 | F153: * | G153: ¥1.00 | H153: 년 | I153: * | J153: ¥2.00 | K153: 회 | L153: = | M153: ¥10,000.00
D154: 인턴쉽프로그램 | E154: ¥1,500.00 | F154: * | G154: ¥4.00 | H154: 회 | I154: * | J154: ¥1.00 | K154: 년 | L154: = | M154: ¥6,000.00
D155: 인문고전문학기행 | E155: ¥8,500.00 | F155: * | G155: ¥1.00 | H155: 년 | I155: * | J155: ¥2.00 | K155: 회 | L155: = | M155: ¥17,000.00
D156: 매향학술대회 | E156: ¥1,000.00 | F156: * | G156: ¥1.00 | H156: 년 | I156: * | J156: ¥2.00 | K156: 회 | L156: = | M156: ¥2,000.00
D157: 사회과교구구입 | E157: ¥1,000.00 | F157: * | G157: ¥1.00 | H157: 년 | I157: * | J157: ¥4.00 | K157: 회 | L157: = | M157: ¥4,000.00
D158: 방송실운영 | E158: ¥1,000.00 | F158: * | G158: ¥1.00 | H158: 년 | I158: * | J158: ¥6.00 | K158: 회 | L158: = | M158: =E158*G158*J158 -> ¥6,000.00
D159: 학부모상담 등 다과 구입 | E159: ¥500.00 | F159: * | G159: ¥1.00 | H159: 년 | I159: * | J159: ¥10.00 | K159: 회 | L159: = | M159: ¥5,000.00
D160: 대학입시설명회 | E160: ¥500.00 | F160: * | G160: ¥1.00 | H160: 년 | I160: * | J160: ¥10.00 | K160: 회 | L160: = | M160: =E160*G160*J160 -> ¥5,000.00
D161: 모의면접 | E161: ¥250.00 | F161: * | G161: ¥1.00 | H161: 년 | I161: * | J161: ¥2.00 | K161: 회 | L161: = | M161: =E161*G161*J161 -> ¥500.00
D162: 12학년2학기프로그램 | E162: ¥15,000.00 | F162: * | G162: ¥1.00 | H162: 년 | I162: * | J162: ¥1.00 | K162: 회 | L162: = | M162: =E162*G162*J162 -> ¥15,000.00
D163: 진학지도및간담회 | E163: ¥10,000.00 | F163: * | G163: ¥2.00 | H163: 명 | I163: * | J163: ¥1.00 | K163: 회 | L163: = | M163: ¥20,000.00
D164: 학교홍보용품 구입 | E164: ¥2,500.00 | F164: * | G164: ¥1.00 | H164: 년 | I164: * | J164: ¥2.00 | K164: 회 | L164: = | M164: ¥5,000.00
D165: 교육과정관련물품구입 | E165: ¥1,000.00 | F165: * | G165: ¥1.00 | H165: 년 | I165: * | J165: ¥4.00 | K165: 회 | L165: = | M165: ¥4,000.00
D166: 명사초청 진로특강 | E166: ¥5,000.00 | F166: * | G166: ¥1.00 | H166: 년 | I166: * | J166: ¥2.00 | K166: 회 | L166: = | M166: ¥10,000.00
C167: 교직원연수(중) | D167: 연수비 | E167: ¥200.00 | F167: * | G167: ¥40.00 | H167: 명 | I167: * | J167: ¥5.00 | K167: 회 | L167: = | M167: ¥40,000.00
C168: 현장체험학습(초) | D168: 대련한국학교 교류학습물품 | E168: ¥300.00 | F168: * | G168: ¥20.00 | H168: 명 | I168: * | J168: ¥1.00 | K168: 회 | L168: = | M168: ¥6,000.00
D169: 대련한국학교 인솔교사 지원비 | E169: ¥4,000.00 | F169: * | G169: ¥3.00 | H169: 명 | I169: * | J169: ¥1.00 | K169: 회 | L169: = | M169: ¥12,000.00
C170: 현장체험학습(중) | D170: 인솔교사 지원비 등 | E170: ¥300.00 | F170: * | G170: ¥17.00 | H170: 명 | I170: * | J170: ¥2.00 | K170: 회 | L170: = | M170: =E170*G170*J170 -> ¥10,200.00
C171: 도서관운영(초) | D171: 윤독도서구입 | E171: ¥3,000.00 | F171: * | G171: ¥6.00 | H171: 학급 | I171: * | J171: ¥1.00 | K171: 회 | L171: = | M171: =E171*G171*J171 -> ¥18,000.00
C172: 도서관운영(중) | D172: 도서구입 | E172: ¥200.00 | F172: * | G172: ¥100.00 | H172: 권 | I172: * | J172: ¥2.00 | K172: 회 | L172: = | M172: =E172*G172*J172 -> ¥40,000.00
D173: 도서관 소모품 | E173: ¥5.00 | F173: * | G173: ¥2,000.00 | H173: 장 | I173: * | J173: ¥1.00 | K173: 회 | L173: = | M173: =E173*G173*J173 -> ¥10,000.00
C174: 교육정보화운영(중) | D174: 전산소모품구입 | E174: ¥500.00 | F174: * | G174: ¥1.00 | H174: 년 | I174: * | J174: ¥12.00 | K174: 월 | L174: = | M174: ¥6,000.00
D175: 프린터토너 | E175: ¥500.00 | F175: * | G175: ¥1.00 | H175: 년 | I175: * | J175: ¥10.00 | K175: 회 | L175: = | M175: ¥5,000.00
D176: 홈페이지유지보수비 | E176: ¥5,000.00 | F176: * | G176: ¥1.00 | H176: 년 | I176: * | J176: ¥1.00 | K176: 회 | L176: = | M176: ¥5,000.00
D177: 업무용S/W구입 | E177: ¥2,500.00 | F177: * | G177: ¥2.00 | H177: 종 | I177: * | J177: ¥1.00 | K177: 년 | L177: = | M177: ¥5,000.00
B178: 소계 | M178: =SUM(M82:M177) -> ¥907,575.00
B179: 3.학생복리비 | C179: 보건관리 | D179: 약품구입 | E179: ¥1,000.00 | F179: * | G179: ¥1.00 | H179: 년 | I179: * | J179: ¥4.00 | K179: 회 | L179: = | M179: =E179*G179*J179 -> ¥4,000.00
C180: 학생위생관리 | D180: 정수기유지관리 | E180: ¥400.00 | F180: * | G180: ¥9.00 | H180: 대 | I180: * | J180: ¥10.00 | K180: 회 | L180: = | M180: =E180*G180*J180 -> ¥36,000.00
D181: 청소용품구입 | E181: ¥2,000.00 | F181: * | G181: ¥1.00 | H181: 년 | I181: * | J181: ¥2.00 | K181: 회 | L181: = | M181: ¥4,000.00
D182: 화장실용품구입 | E182: ¥500.00 | F182: * | G182: ¥1.00 | H182: 년 | I182: * | J182: ¥12.00 | K182: 월 | L182: = | M182: ¥6,000.00
D183: 안전공제회비 | E183: ¥150.00 | F183: * | G183: ¥270.00 | H183: 명 | I183: * | J183: ¥1.00 | K183: 회 | L183: = | M183: ¥40,500.00
C184: 학생회(초) | D184: 학생회 | E184: ¥500.00 | F184: * | G184: ¥2.00 | H184: 학년 | I184: * | J184: ¥1.00 | K184: 회 | L184: = | M184: ¥1,000.00
C185: 학생회(중) | D185: 대의원회 | E185: ¥50.00 | F185: * | G185: ¥30.00 | H185: 명 | I185: * | J185: ¥6.00 | K185: 회 | L185: = | M185: =E185*G185*J185 -> ¥9,000.00
B186: 소계 | M186: =SUM(M179:M185) -> ¥100,500.00
B187: 4.업무추진비 | C187: 학부모간담회 | D187: 업무추진비 | E187: ¥40.00 | F187: * | G187: ¥50.00 | H187: 명 | I187: * | J187: ¥5.00 | K187: 회 | L187: = | M187: =E187*G187*J187 -> ¥10,000.00
C188: 운영위원회운영 | D188: 업무추진비 | E188: ¥150.00 | F188: * | G188: ¥10.00 | H188: 명 | I188: * | J188: ¥5.00 | K188: 회 | L188: = | M188: ¥7,500.00
C189: 학부모회운영 | D189: 업무추진비 | E189: ¥40.00 | F189: * | G189: ¥50.00 | H189: 명 | I189: * | J189: ¥5.00 | K189: 회 | L189: = | M189: ¥10,000.00
C190: 교직원협의회 | D190: 업무추진비 | E190: ¥150.00 | F190: * | G190: ¥40.00 | H190: 명 | I190: * | J190: ¥6.00 | K190: 회 | L190: = | M190: ¥36,000.00
C191: 유관기관업무협의회 | D191: 업무추진비 | E191: ¥200.00 | F191: * | G191: ¥10.00 | H191: 명 | I191: * | J191: ¥15.00 | K191: 회 | L191: = | M191: ¥30,000.00
C192: 교사등기관련협의회 | D192: 업무추진비 | E192: ¥150.00 | F192: * | G192: ¥10.00 | H192: 명 | I192: * | J192: ¥7.00 | K192: 회 | L192: = | M192: ¥10,500.00
C193: 경조사비 | D193: 업무추진비 | E193: ¥500.00 | F193: * | G193: ¥1.00 | H193: 년 | I193: * | J193: ¥10.00 | K193: 회 | L193: = | M193: ¥5,000.00
B194: 소계 | M194: =SUM(M187:M193) -> ¥109,000.00
A195: 계 | M195: =M81+M178+M186+M194 -> ¥2,642,675.00 | XFD195: =SUM(M195:XFC195) -> ¥2,642,675.00
A196: 3.자산취득비 | B196: 1.자산취득비 | C196: 비품비 | D196: 비품 구입 | E196: ¥500,000.00 | F196: * | G196: 1 | H196: 년 | I196: * | J196: 1 | K196: 회 | L196: = | M196: =E196*G196*J196 -> ¥500,000.00
A197: 계 | M197: =SUM(M196:M196) -> ¥500,000.00
A198: 4.시설(대수선)비 | B198: 1.시설비 | C198: 교사신축비 | D198: 신축관련경비 | E198: ¥2,772,000.00 | F198: * | G198: 1 | H198: 년 | I198: * | J198: 1 | K198: 회 | L198: = | M198: =E198*J198 -> ¥2,772,000.00
D199: 감독관인건비 | E199: ¥19,000.00 | F199: * | G199: 1 | H199: 명 | I199: * | J199: 12 | K199: 월 | L199: = | M199: ¥228,000.00
B200: 소계 | M200: =SUM(M198:M199) -> ¥3,000,000.00
... 21 more rows
